bitfinex-derivatives/quotes_ETHF0:USTF0_20210705
["timestamp","ask_amount","ask_price","bid_price","bid_amount"]
[1625465021586,5.41054,2266.7,2265.6,1.27110912]
[1625465022586,5.41054,2266.7,2265.4,1.27199194]
[1625465023238,5.41054,2266.7,2265.9,2.20527]
[1625465023338,2.20527,2266.0,2265.9,2.20527]
[1625465023437,3.20527,2266.0,2265.9,4.63797]
[1625465024396,2.20527,2266.0,2265.9,4.63797]
[1625465024645,3.20527,2266.0,2265.9,4.63797]
[1625465025244,5.41054,2266.0,2265.9,4.63797]
[1625465027148,4.41054,2266.0,2265.9,4.63797]
[1625465027451,5.41054,2266.0,2265.9,4.63797]
[1625465027950,4.41054,2266.0,2265.9,4.63797]
[1625465028350,5.41054,2266.0,2265.9,4.63797]
[1625465033833,4.41054,2266.0,2265.9,4.63797]
[1625465035037,5.41054,2266.0,2265.9,4.63797]
[1625465036053,4.41054,2266.0,2265.9,4.63797]
[1625465037101,5.41054,2266.0,2265.9,4.63797]
[1625465037300,4.41054,2266.0,2265.9,4.63797]
[1625465038051,5.41054,2266.0,2265.9,4.63797]
[1625465040055,4.41054,2266.0,2265.9,4.63797]
[1625465040958,5.41054,2266.0,2265.9,4.63797]
[1625465044278,4.41054,2266.0,2265.9,4.63797]
[1625465044779,5.41054,2266.0,2265.9,4.63797]
[1625465045382,4.41054,2266.0,2265.9,4.63797]
[1625465045680,5.41054,2266.0,2265.9,4.63797]
[1625465047384,56.04684,2266.0,2265.9,4.63797]
[1625465048636,5.41054,2266.0,2265.9,4.63797]
[1625465053856,6.29314,2266.0,2265.9,4.63797]
[1625465053955,5.41054,2266.0,2265.9,4.63797]
[1625465055160,1.0,2266.7,2265.9,4.63797]
[1625465055559,2.20527,2266.4,2266.3,2.20527]
[1625465055657,3.20527,2266.4,2266.3,2.20527]
[1625465060965,2.20527,2266.4,2266.3,2.20527]
[1625465061064,2.20527,2266.6,2266.3,2.20527]
[1625465061615,2.20527,2266.6,2266.5,4.63587]
[1625465061817,3.20527,2266.6,2266.5,4.63587]
[1625465062330,2.20527,2266.6,2266.5,4.63587]
[1625465064439,2.20527,2266.6,2266.5,46.24007]
[1625465064638,1.0,2267.1,2266.5,46.24007]
[1625465064840,1.0,2267.1,2266.5,4.63587]
[1625465065649,2.20527,2267.3,2267.0,2.20527]
[1625465065741,2.20527,2267.3,2267.0,4.47787]
[1625465066069,1.0,2267.2,2267.0,4.47787]
[1625465066148,2.20527,2267.3,2267.0,4.47787]
[1625465067601,2.20527,2267.3,2267.1,2.20527]
[1625465073161,1.0,2267.2,2267.1,2.20527]
[1625465073270,2.20527,2267.3,2267.1,2.20527]
[1625465076017,2.20527,2267.5,2267.1,2.20527]
[1625465076116,1.29986107,2268.1,2267.1,2.20527]
[1625465076215,1.2997083,2268.2,2267.1,2.20527]
[1625465076517,1.2997083,2268.2,2267.2,15.98373]
[1625465076667,3.37924158,2268.7,2267.2,15.98373]
[1625465076668,1.29936336,2268.5,2267.2,15.98373]
[1625465076767,1.29936336,2268.5,2267.6,37.9029]
[1625465076866,1.0,2268.4,2267.6,41.1228]
[1625465077117,1.0,2268.4,2267.6,3.2199]
[1625465077668,2.20527,2268.2,2268.1,2.20527]
[1625465077776,3.20527,2268.2,2268.1,2.20527]
[1625465077917,3.20527,2268.2,2268.1,4.45297]
[1625465079722,5.41054,2268.2,2268.1,4.45297]
[1625465084493,5.41054,2268.2,2268.1,2.2477]
[1625465084593,5.41054,2268.2,2266.6,1.26462147]
[1625465084693,7.95924,2268.2,2266.6,1.26462147]
[1625465085051,7.95924,2268.2,2266.5,4.20107006]
[1625465085052,7.95924,2268.2,2266.5,3.6961077]
[1625465085193,37.301,2267.3,2266.5,3.6961077]
[1625465085292,38.301,2267.3,2266.5,3.7461077]
[1625465085492,37.301,2267.3,2266.5,3.7461077]
[1625465085694,1.0,2267.5,2266.5,3.7461077]
[1625465085795,1.0,2267.5,2266.5,2.4806]
[1625465085893,1.0,2267.5,2267.4,2.20527]
[1625465085993,1.0,2267.5,2267.4,5.72357]
[1625465088549,44.1114,2267.5,2267.4,5.72357]
[1625465089300,1.0,2267.5,2267.4,5.72357]
[1625465090004,45.251,2267.5,2267.4,5.72357]
[1625465090713,1.0,2267.5,2267.4,5.72357]
[1625465090810,1.0,2267.6,2267.4,5.72357]
[1625465098342,4.41054,2267.7,2267.4,5.72357]
[1625465098945,2.20527,2267.7,2267.4,5.72357]
[1625465099546,2.20527,2267.7,2267.6,45.2668]
[1625465099847,2.20527,2267.7,2267.5,16.137086]
[1625465099951,2.20527,2268.0,2267.6,2.20527]
[1625465100051,1.0,2267.9,2267.6,2.20527]
[1625465101653,40.9817,2267.9,2267.6,2.20527]
[1625465102051,40.9817,2267.9,2267.4,2.20527]
[1625465102152,43.9583,2267.9,2267.4,2.20527]
[1625465102350,43.9583,2267.9,2266.5,1.26522878]
[1625465102551,44.8393,2267.9,2266.5,1.26522878]
[1625465102700,44.8393,2267.9,2266.4,1.26569062]
[1625465102701,4.8576,2267.9,2266.4,1.26569062]
[1625465103264,4.8576,2267.9,2266.4,43.2336]
[1625465103350,1.881,2267.9,2266.4,43.2336]
[1625465103850,1.881,2267.9,2266.3,0.05]
[1625465103950,4.0969,2267.9,2266.3,0.05]
[1625465104051,2.20527,2266.4,2266.3,2.25527]
[1625465104151,6.61417,2266.4,2266.3,2.25527]
[1625465104459,45.46707,2266.4,2266.3,2.25527]
[1625465104856,45.46707,2266.4,2266.3,0.05]
[1625465105159,45.46707,2266.4,2266.0,2.20527]
[1625465105759,45.46707,2266.4,2265.2,1.27032187]
[1625465106008,2.20527,2265.9,2265.8,2.20527]
[1625465106108,3.20527,2265.9,2265.8,2.20527]
[1625465107469,6.74337,2265.9,2265.8,2.20527]
[1625465108063,8.94864,2265.9,2265.5,2.20527]
[1625465108163,42.4779,2265.6,2265.5,2.20527]
[1625465108265,43.4779,2265.6,2265.5,2.20527]
[1625465108968,1.0,2265.6,2265.5,2.20527]
[1625465110019,3.20527,2265.6,2265.5,2.20527]
[1625465110870,48.95987,2265.6,2265.5,2.20527]
[1625465111326,51.74037,2265.6,2265.5,2.20527]
[1625465111933,5.98577,2265.6,2265.5,2.20527]
[1625465112279,3.20527,2265.6,2265.5,2.20527]
[1625465112833,43.94727,2265.6,2265.5,2.20527]
[1625465114702,3.20527,2265.6,2265.5,2.20527]
[1625465115409,42.34287,2265.6,2265.5,2.20527]
[1625465117006,42.34287,2265.6,2265.3,2.20527]
[1625465118057,2.20527,2265.4,2265.0,2.20527]
[1625465118157,3.8504,2265.3,2265.0,2.20527]
[1625465119309,1.0,2265.3,2265.0,2.20527]
[1625465120112,1.0,2265.3,2265.1,2.20527]
[1625465120212,1.0,2265.3,2265.1,4.50477]
[1625465130552,41.8817,2265.2,2265.1,4.50477]
[1625465130653,42.8817,2265.2,2265.1,4.50477]
[1625465131502,42.8817,2265.2,2265.1,2.20527]
[1625465131953,1.0,2265.2,2265.1,2.20527]
[1625465132202,3.20527,2265.2,2265.1,2.20527]
[1625465132556,57.55507,2265.2,2265.1,2.20527]
[1625465133515,3.20527,2265.2,2265.1,2.20527]
[1625465133614,2.20527,2265.2,2265.1,2.20527]
[1625465134013,3.20527,2265.2,2265.1,2.20527]
[1625465136719,3.20527,2265.2,2264.7,2.2054]
[1625465138178,2.20527,2264.8,2264.7,2.2054]
[1625465139576,2.20527,2264.8,2264.4,2.20527]
[1625465139780,51.42867,2264.8,2264.4,2.20527]
[1625465139878,2.20527,2264.8,2264.4,2.20527]
[1625465139978,1.0,2265.9,2264.4,2.20527]
[1625465140078,1.0,2265.9,2264.4,4.49197]
[1625465140177,14.1399,2266.0,2265.8,4.41054]
[1625465140277,14.1399,2266.0,2265.8,7.20374]
[1625465140477,2.20527,2266.2,2265.8,7.20374]
[1625465140678,51.40257,2266.2,2265.8,7.20374]
[1625465141083,1.0,2266.1,2265.8,7.20374]
[1625465141786,1.0,2266.1,2265.8,2.7932]
[1625465141888,1.0,2266.1,2264.5,13.6694]
[1625465142187,2.20527,2265.3,2265.1,2.20527]
[1625465142389,51.1001,2265.2,2265.1,2.20527]
[1625465143301,52.1001,2265.2,2265.1,2.20527]
[1625465143500,51.1001,2265.2,2265.1,2.20527]
[1625465143701,52.1001,2265.2,2265.1,2.20527]
[1625465143802,1.0,2265.2,2265.1,2.20527]
[1625465145155,4.41054,2265.3,2265.1,2.20527]
[1625465145656,1.0,2265.2,2265.1,2.20527]
[1625465146259,4.41054,2265.3,2265.1,2.20527]
[1625465153127,1.8936,2266.0,2265.1,2.20527]
[1625465153226,1.0,2266.0,2265.1,2.20527]
[1625465153979,5.8724,2267.1,2265.1,2.20527]
[1625465154079,1.0,2266.5,2265.1,2.20527]
[1625465154180,5.8724,2267.1,2265.1,2.20527]
[1625465154181,1.0,2266.3,2265.1,2.20527]
[1625465154281,1.0,2266.3,2265.0,3.3818]
[1625465154282,2.20527,2266.0,2265.9,2.20527]
[1625465154381,3.20527,2266.0,2265.9,5.27197]
[1625465155084,46.62827,2266.0,2265.9,5.27197]
[1625465155638,46.62827,2266.0,2265.9,3.0667]
[1625465155740,46.62827,2266.0,2265.7,2.20527]
[1625465156293,2.20527,2265.8,2265.7,2.20527]
[1625465156391,3.20527,2265.8,2265.4,2.20527]
[1625465158347,2.20527,2265.5,2265.4,2.20527]
[1625465171753,5.97587,2265.5,2265.4,2.20527]
[1625465172266,4.97587,2265.5,2265.4,2.20527]
[1625465172618,5.97587,2265.5,2265.4,2.20527]
[1625465173869,4.97587,2265.5,2265.4,2.20527]
[1625465174070,2.20527,2265.5,2265.4,2.20527]
[1625465176777,3.20527,2265.5,2265.4,2.20527]
[1625465177228,2.20527,2265.5,2265.4,2.20527]
[1625465178078,3.20527,2265.5,2265.4,2.20527]
[1625465184347,3.20527,2265.5,2265.4,1.60527]
[1625465188369,3.20527,2265.5,2265.1,2.20527]
[1625465188474,2.20527,2265.2,2264.8,2.20527]
[1625465188576,1.0,2265.1,2264.8,2.20527]
[1625465188675,3.1602,2265.1,2264.8,2.20527]
[1625465189127,52.1388,2264.9,2264.8,2.20527]
[1625465189327,3.1602,2265.1,2264.8,2.20527]
[1625465189882,4.044,2265.1,2264.8,2.20527]
[1625465190531,2.20527,2264.9,2264.8,2.20527]
[1625465190982,3.20527,2264.9,2264.8,2.20527]
[1625465191182,2.20527,2264.9,2264.8,2.20527]
[1625465191884,2.20527,2264.9,2264.6,2.20527]
[1625465191987,3.20527,2264.9,2264.6,2.20527]
[1625465192536,2.20527,2264.7,2264.6,2.20527]
[1625465195796,3.20527,2264.7,2264.6,2.20527]
[1625465197163,2.20527,2264.7,2264.6,2.20527]
[1625465197268,3.20527,2264.7,2264.6,2.20527]
[1625465198978,3.20527,2264.7,2264.4,1.28659879]
[1625465199078,53.0254,2264.6,2264.4,1.28659879]
[1625465199177,1.0,2264.5,2264.3,3.49174166]
[1625465199577,1.0,2264.5,2264.4,15.968121]
[1625465200079,2.3505,2264.6,2264.4,15.968121]
[1625465200482,3.20527,2264.5,2264.4,15.968121]
[1625465200591,3.20527,2264.5,2264.3,2.20527]
[1625465200831,2.20527,2264.5,2264.3,3.49192881]
[1625465201332,3.20527,2264.5,2264.3,3.49192881]
[1625465202233,3.20527,2264.5,2264.3,2.20527]
[1625465202332,2.20527,2264.5,2264.3,2.20527]
[1625465202684,2.20527,2264.5,2264.3,3.49202321]
[1625465202884,3.20527,2264.5,2264.3,3.49202321]
[1625465203938,3.20527,2264.5,2264.3,2.20527]
[1625465204887,3.20527,2264.5,2264.3,3.49202041]
[1625465205639,3.20527,2264.5,2264.3,2.20527]
[1625465205740,2.20527,2264.5,2264.3,2.20527]
[1625465206092,2.20527,2264.5,2264.3,3.49152371]
[1625465206194,2.20527,2264.5,2264.4,15.898756]
[1625465206495,2.20527,2264.5,2264.4,17.18494135]
[1625465206894,3.18262591,2265.3,2264.4,17.18494135]
[1625465206994,2.30342591,2265.3,2264.4,17.18494135]
[1625465208597,2.20527,2264.6,2264.4,17.18494135]
[1625465208747,2.20527,2264.6,2264.4,15.898756]
[1625465209147,2.20527,2264.6,2264.4,17.18371634]
[1625465210252,2.20527,2264.9,2264.4,17.18371634]
[1625465210355,2.20527,2264.9,2264.5,1.28448232]
[1625465210463,1.3031189,2265.5,2264.5,1.28448232]
[1625465210563,1.3031189,2265.5,2265.4,2.20527]
[1625465210657,15.73922571,2265.7,2265.4,5.27857]
[1625465210755,15.73922571,2265.7,2265.4,43.43267]
[1625465210855,15.73922571,2265.7,2265.4,5.27857]
[1625465210955,1.0,2265.6,2265.4,5.27857]
[1625465212359,3.50828414,2265.8,2265.4,5.27857]
[1625465212561,4.50828414,2265.8,2265.7,2.20527]
[1625465213072,3.20527,2265.8,2265.7,2.20527]
[1625465213475,4.5083461,2265.8,2265.7,2.20527]
[1625465215133,5.3805461,2265.8,2265.7,2.20527]
[1625465215682,5.3805461,2265.8,2265.4,2.20527]
[1625465215783,5.3805461,2265.8,2264.9,1.28443245]
[1625465215883,8.2876461,2265.8,2264.9,1.28443245]
[1625465215982,8.2876461,2265.8,2264.0,5.1377298]
[1625465215983,9.59117538,2265.8,2264.7,1.28257399]
[1625465216584,4.41054,2264.8,2264.7,1.28257399]
[1625465216786,4.41054,2264.8,2264.6,2.20527]
[1625465216985,8.29114,2264.8,2264.5,1.28388593]
[1625465217185,8.29114,2264.8,2264.4,3.4894296]
[1625465217286,7.29114,2264.8,2264.4,3.4894296]
[1625465217486,56.71204,2264.8,2264.4,3.4894296]
[1625465217587,57.71204,2264.8,2264.4,3.4894296]
[1625465217786,57.71204,2264.8,2264.4,2.20527]
[1625465218086,8.29114,2264.8,2264.4,2.20527]
[1625465218639,2.20527,2264.5,2264.4,4.41054]
[1625465218890,2.20527,2264.5,2264.4,5.69469375]
[1625465219091,5.08587,2264.8,2264.4,5.69469375]
[1625465219195,2.20527,2264.8,2264.4,5.69469375]
[1625465219395,3.20527,2264.8,2264.4,5.69469375]
[1625465220347,2.20527,2264.8,2264.4,5.69469375]
[1625465220599,2.20527,2264.8,2264.7,2.20527]
[1625465220947,3.20527,2264.8,2264.7,2.20527]
[1625465221499,2.20527,2264.8,2264.7,2.20527]
[1625465221599,3.20527,2264.8,2264.7,2.20527]
[1625465222650,5.41054,2264.8,2264.7,2.20527]
[1625465224655,5.41054,2264.8,2264.4,2.20527]
[1625465224755,8.51564,2264.8,2264.2,1.28510689]
[1625465225615,8.51564,2264.8,2264.0,1.2859026]
[1625465226657,4.41054,2264.1,2264.0,1.2859026]
[1625465226757,5.41054,2264.1,2264.0,1.2859026]
[1625465227159,4.41054,2264.1,2264.0,1.2859026]
[1625465227614,4.41054,2264.1,2263.9,4.00553365]
[1625465227974,4.41054,2264.1,2264.0,1.28635394]
[1625465229777,4.41054,2264.1,2263.9,3.49068277]
[1625465229877,7.14254,2264.1,2263.9,3.49068277]
[1625465230327,8.14254,2264.1,2263.9,3.49068277]
[1625465231129,8.14254,2264.1,2263.9,2.20527]
[1625465236138,8.14254,2264.1,2263.7,1.28537216]
[1625465236690,2.20527,2263.8,2263.7,1.28537216]
[1625465236790,2.20527,2263.8,2263.5,1.28590211]
[1625465237090,2.20527,2263.8,2263.7,16.065703]
[1625465237392,2.20527,2263.8,2263.6,15.905994]
[1625465237491,2.20527,2263.8,2263.5,1.28590211]
[1625465237692,2.20527,2263.8,2263.7,15.91598]
[1625465238043,2.20527,2263.8,2263.6,16.04818]
[1625465238146,2.20527,2263.8,2263.5,1.28590211]
[1625465238244,2.20527,2263.8,2263.7,16.067946]
[1625465238546,2.20527,2263.8,2263.6,16.018814]
[1625465238796,2.20527,2263.7,2263.6,16.018814]
[1625465238946,2.20527,2263.7,2263.5,3.49117211]
[1625465239147,2.20527,2263.7,2263.6,15.967341]
[1625465241102,53.18837,2263.7,2263.5,16.018603]
[1625465241301,2.20527,2263.7,2263.5,16.018603]
[1625465241400,2.20527,2263.7,2263.6,16.142408]
[1625465241702,2.20527,2263.7,2263.5,15.952476]
[1625465244263,2.20527,2263.7,2263.4,15.90575]
[1625465244764,2.20527,2263.5,2263.4,15.90575]
[1625465245632,2.20527,2263.5,2263.4,17.19226917]
[1625465245929,2.20527,2263.5,2263.4,1.28651917]
[1625465246029,2.20527,2263.5,2263.3,17.46011852]
[1625465246234,2.20527,2263.5,2263.4,16.077967]
[1625465246837,55.30377,2263.5,2263.4,16.077967]
[1625465247287,56.30377,2263.5,2263.4,16.077967]
[1625465247590,59.50887,2263.5,2263.3,2.20527]
[1625465248488,6.41037,2263.5,2263.3,2.20527]
[1625465251745,3.20527,2263.5,2263.3,2.20527]
[1625465256053,47.41697,2263.5,2263.3,2.20527]
[1625465258061,50.11817,2263.5,2263.3,2.20527]
[1625465260014,5.90647,2263.5,2263.3,2.20527]
[1625465260116,3.20527,2263.5,2263.3,2.20527]
[1625465260225,2.20527,2263.5,2263.3,2.20527]
[1625465260317,1.0,2263.7,2263.3,2.20527]
[1625465260878,0.8794,2264.6,2263.3,55.95037]
[1625465260977,2.20527,2263.9,2263.8,2.20527]
[1625465261078,2.20527,2263.9,2263.8,4.82737]
[1625465261843,3.20527,2263.9,2263.8,4.82737]
[1625465262037,2.20527,2263.9,2263.8,4.82737]
[1625465262537,3.20527,2263.9,2263.8,4.82737]
[1625465262938,4.41054,2263.9,2263.8,4.82737]
[1625465263390,45.05564,2263.9,2263.8,4.82737]
[1625465263490,46.05564,2263.9,2263.8,4.82737]
[1625465264495,5.41054,2263.9,2263.8,4.82737]
[1625465264997,4.41054,2263.9,2263.8,4.82737]
[1625465265846,5.41054,2263.9,2263.8,4.82737]
[1625465266296,4.41054,2263.9,2263.8,4.82737]
[1625465266797,5.41054,2263.9,2263.8,4.82737]
[1625465266998,4.41054,2263.9,2263.8,4.82737]
[1625465271663,13.6374,2264.5,2263.8,4.82737]
[1625465272060,13.6374,2264.5,2263.9,16.109868]
[1625465272261,1.30041005,2265.2,2264.5,50.1422]
[1625465272367,1.30041005,2265.2,2264.5,52.7272]
[1625465272611,1.30041005,2265.2,2264.6,16.033962]
[1625465272811,2.30041005,2265.2,2264.6,16.033962]
[1625465272912,1.0,2265.2,2264.6,16.033962]
[1625465273013,2.20527,2265.0,2264.9,2.20527]
[1625465274227,2.20527,2265.0,2264.7,2.20527]
[1625465275078,2.20527,2264.8,2264.7,2.20527]
[1625465275622,3.20527,2264.8,2264.7,2.20527]
[1625465276885,50.69677,2264.8,2264.7,2.20527]
[1625465277638,3.20527,2264.8,2264.7,2.20527]
[1625465280141,2.20527,2264.8,2264.7,2.20527]
[1625465280450,2.20527,2264.8,2264.7,4.83677]
[1625465281495,3.20527,2264.8,2264.7,4.83677]
[1625465282246,3.20527,2264.8,2264.7,2.20527]
[1625465282745,43.88957,2264.8,2264.7,2.20527]
[1625465283197,43.88957,2264.8,2264.5,0.05]
[1625465284100,43.88957,2264.8,2263.0,14.8095]
[1625465284101,43.88957,2264.8,2263.3,1.28432925]
[1625465284200,5.0,2264.7,2263.3,1.28432925]
[1625465284351,1.0,2264.6,2263.3,1.28432925]
[1625465284451,1.8758,2264.6,2263.3,1.28432925]
[1625465284754,48.3697,2263.8,2263.1,1.28545031]
[1625465284853,1.0,2263.7,2263.1,1.28545031]
[1625465285055,2.20527,2263.6,2263.5,2.20527]
[1625465285153,3.20527,2263.6,2263.5,2.20527]
[1625465286864,3.20527,2263.6,2263.2,2.20527]
[1625465287064,2.20527,2263.3,2263.2,2.20527]
[1625465287618,2.20527,2263.3,2263.2,18.10987]
[1625465292545,3.20527,2263.3,2263.2,18.10987]
[1625465292746,2.20527,2263.3,2263.2,18.10987]
[1625465293552,3.20527,2263.3,2263.2,18.10987]
[1625465293650,3.20527,2263.3,2263.2,2.20527]
[1625465298863,3.20527,2263.3,2263.2,5.17827]
[1625465298964,2.20527,2263.3,2263.2,5.17827]
[1625465300016,2.20527,2263.3,2263.2,21.193388]
[1625465303488,2.20527,2263.3,2263.2,22.48095644]
[1625465304087,2.20527,2263.3,2263.2,21.193388]
[1625465305550,2.20527,2263.3,2263.2,22.48169676]
[1625465310666,2.20527,2263.3,2263.2,21.193388]
[1625465311068,2.20527,2263.3,2263.2,22.48285166]
[1625465312319,2.20527,2263.3,2263.2,21.193388]
[1625465313824,2.20527,2263.3,2263.2,22.48326621]
[1625465314172,2.20527,2263.3,2263.2,21.193388]
[1625465314525,3.20527,2263.6,2263.2,21.193388]
[1625465315275,3.20527,2263.6,2263.5,2.20527]
[1625465315374,2.20527,2263.6,2263.5,2.20527]
[1625465315679,2.20527,2263.6,2263.5,18.291858]
[1625465315875,3.20527,2263.6,2263.5,18.291858]
[1625465315985,2.20527,2263.6,2263.5,18.291858]
[1625465316727,3.20527,2263.6,2263.5,18.291858]
[1625465317277,5.41054,2263.6,2263.5,18.291858]
[1625465317378,5.41054,2263.6,2263.5,2.20527]
[1625465319300,5.41054,2263.6,2263.5,4.49987]
[1625465319402,4.41054,2263.6,2263.5,4.49987]
[1625465321405,5.41054,2263.6,2263.5,4.49987]
[1625465323010,4.41054,2263.6,2263.5,4.49987]
[1625465323211,5.41054,2263.6,2263.5,4.49987]
[1625465325217,4.41054,2263.6,2263.5,4.49987]
[1625465327273,5.41054,2263.6,2263.5,4.49987]
[1625465329177,4.41054,2263.6,2263.5,4.49987]
[1625465332700,2.20766959,2264.7,2263.5,4.49987]
[1625465332802,1.30391272,2264.4,2263.5,4.49987]
[1625465332903,4.65556083,2265.3,2263.6,5.0]
[1625465333201,1.30346089,2265.1,2264.2,1.28718552]
[1625465333301,0.42286089,2265.1,2264.3,1.30309469]
[1625465333401,1.82484524,2265.2,2265.0,4.41054]
[1625465333501,2.43566702,2265.3,2265.1,5.0]
[1625465333601,1.84737484,2265.8,2265.1,5.0]
[1625465333701,2.20527,2268.4,2265.2,0.16187078]
[1625465333903,20.8553742,2269.0,2265.2,0.16187078]
[1625465334001,20.8553742,2269.0,2265.3,15.929661]
[1625465334102,7.27516533,2266.5,2265.4,5.0]
[1625465334203,2.02006533,2266.5,2265.4,5.16176361]
[1625465334303,1.0,2268.4,2265.4,5.16176361]
[1625465334304,1.30237689,2267.6,2265.4,5.16176361]
[1625465334400,1.30237689,2267.6,2265.5,0.13062423]
[1625465334502,1.30237689,2267.6,2265.5,19.56660691]
[1625465334601,1.30237689,2267.6,2265.6,5.0]
[1625465334701,1.25237689,2267.6,2266.9,45.2548]
[1625465334801,1.25237689,2267.6,2265.7,0.16070039]
[1625465335004,1.82332764,2267.8,2265.8,6.34677566]
[1625465335105,5.0,2268.9,2265.8,6.34677566]
[1625465335106,15.2849,2268.1,2265.8,6.34677566]
[1625465335315,39.8869,2267.7,2265.8,6.34677566]
[1625465335404,2.20527,2267.8,2267.6,2.20527]
[1625465335504,3.20527,2267.8,2267.6,2.20527]
[1625465336015,2.20527,2267.8,2267.6,2.20527]
[1625465336227,3.20527,2267.8,2267.6,2.20527]
[1625465336707,3.20527,2267.8,2267.6,1.89797]
[1625465336808,3.20527,2267.8,2267.6,1.73847]
[1625465337419,5.41054,2267.8,2267.6,1.73847]
[1625465337921,1.0,2267.8,2267.6,1.73847]
[1625465339071,14.2849,2268.1,2267.6,1.73847]
[1625465339473,14.2849,2268.1,2268.0,2.20527]
[1625465339572,14.2849,2268.1,2268.0,4.78317]
[1625465340221,14.2849,2268.1,2268.0,20.70514]
[1625465342381,14.2849,2268.1,2268.0,2.20527]
[1625465344635,14.2849,2268.1,2268.0,5.36987]
[1625465346087,14.2849,2268.1,2268.0,21.389848]
[1625465357881,14.2849,2268.1,2268.0,75.536348]
[1625465360788,13.24044501,2268.1,2268.0,75.536348]
[1625465360887,2.20527,2269.4,2268.0,75.536348]
[1625465360991,2.20527,2269.7,2268.0,75.586348]
[1625465361391,1.0,2269.6,2268.0,75.586348]
[1625465361589,2.20527,2269.7,2269.5,4.41054]
[1625465362891,2.20527,2270.2,2269.5,4.41054]
[1625465363494,1.0,2270.3,2269.5,4.41054]
[1625465363592,1.0,2270.3,2270.2,4.41054]
[1625465363693,2.20527,2270.5,2270.2,4.41054]
[1625465364547,3.20527,2270.5,2270.2,4.41054]
[1625465367719,2.20527,2270.5,2270.2,4.41054]
[1625465367819,3.20527,2270.5,2270.2,4.41054]
[1625465367919,2.20527,2270.5,2270.2,4.41054]
[1625465369171,3.20527,2270.5,2270.2,4.41054]
[1625465375334,3.20527,2270.5,2270.4,54.9391]
[1625465376186,3.20527,2270.5,2270.2,4.41054]
[1625465377996,6.22487,2270.5,2270.2,4.41054]
[1625465383421,6.22487,2270.5,2268.9,13.7734]
[1625465383721,46.5979,2269.7,2268.9,13.7734]
[1625465383820,3.4631,2269.6,2268.9,13.7734]
[1625465384119,2.4631,2269.6,2268.9,13.7734]
[1625465384219,2.4631,2269.6,2269.0,15.937887]
[1625465384925,2.4631,2269.6,2268.9,15.99709]
[1625465385223,2.4631,2269.6,2268.8,0.05]
[1625465385323,2.4631,2269.6,2269.1,15.991953]
[1625465385724,2.4631,2269.6,2268.9,15.869374]
[1625465385823,2.4631,2269.6,2269.5,4.41054]
[1625465386980,1.0,2270.2,2269.5,22.599366]
[1625465387079,45.6694,2271.8,2269.5,22.599366]
[1625465387226,0.8828,2272.2,2269.5,22.599366]
[1625465387634,0.8828,2272.2,2270.2,39.3427]
[1625465387733,0.8828,2272.2,2270.2,41.7688]
[1625465387833,16.01937,2271.2,2270.9,2.20527]
[1625465387933,1.0,2271.1,2270.9,2.20527]
[1625465388035,1.0,2271.0,2270.9,2.20527]
[1625465388136,2.20527,2271.2,2270.9,2.20527]
[1625465388837,39.4853,2271.0,2270.9,2.20527]
[1625465388939,39.4853,2271.0,2270.6,2.20527]
[1625465389038,1.0,2270.9,2267.6,4.4519]
[1625465389238,1.0,2270.9,2267.6,3.3519]
[1625465389739,1.0,2270.9,2269.0,16.044574]
[1625465389839,2.20527,2270.5,2270.3,2.20527]
[1625465389940,1.0,2270.4,2270.3,2.20527]
[1625465390139,4.4858,2270.4,2270.3,2.20527]
[1625465390442,4.4858,2270.4,2270.1,2.20527]
[1625465391893,2.20527,2270.2,2270.1,4.41054]
[1625465392046,3.20527,2270.2,2270.1,4.41054]
[1625465397879,4.08507,2270.2,2270.1,4.41054]
[1625465398130,3.20527,2270.2,2270.1,4.41054]
[1625465399231,13.7489,2271.3,2270.1,7.39244]
[1625465399532,5.0,2271.8,2270.1,7.39244]
[1625465399933,2.20527,2271.0,2270.9,2.20527]
[1625465400435,3.20527,2271.0,2270.9,2.20527]
[1625465401791,3.20527,2271.0,2270.6,2.20527]
[1625465401991,2.20527,2270.7,2270.6,2.20527]
[1625465402092,3.20527,2270.7,2270.6,2.20527]
[1625465403797,6.58407,2270.7,2270.4,2.20527]
[1625465403996,2.20527,2270.5,2270.4,2.20527]
[1625465404097,3.20527,2270.5,2270.4,2.20527]
[1625465404896,3.20527,2270.5,2270.1,2.20527]
[1625465405397,53.2138,2270.2,2270.1,2.20527]
[1625465405498,57.7371,2270.2,2270.1,2.20527]
[1625465405951,59.94237,2270.2,2270.1,2.20527]
[1625465407606,59.94237,2270.2,2268.9,14.3496]
[1625465407705,64.94237,2270.2,2266.9,1.0]
[1625465407805,64.94237,2270.2,533.0,5.0]
[1625465407921,2.20527,2268.1,2268.0,2.20527]
[1625465408125,4.47937,2268.1,2268.0,2.20527]
[1625465408573,4.47937,2268.1,2268.0,18.299922]
[1625465408872,56.76367,2268.1,2268.0,2.20527]
[1625465409524,4.47937,2268.1,2268.0,2.20527]
[1625465409925,6.68464,2268.1,2268.0,2.20527]
[1625465410325,7.68464,2268.1,2268.0,2.20527]
[1625465410877,6.68464,2268.1,2268.0,2.20527]
[1625465410977,6.37773778,2273.3,2268.0,2.20527]
[1625465411077,0.8816,2270.7,2268.0,2.20527]
[1625465411177,0.8816,2270.7,2268.0,4.86247]
[1625465411378,1.0,2270.0,2268.0,4.86247]
[1625465411481,1.0,2269.8,2268.9,47.6526]
[1625465411577,1.0,2269.8,2268.9,50.0382]